[Event "Vetern-SM 50+ 2025"]
[Site "Uppsala, Sweden"]
[Date "2025.06.30"]
[Round "3.8"]
[White "Lundberg, Daniel"]
[Black "Uneson, Marcus"]
[Result "1-0"]
[TimeControl "90 min for 40 move + 30 min with an increment of 30 sec starting move 1"]
[WhiteFideId "1759264"]
[BlackFideId "1730509"]
[WhiteElo "1838"]
[BlackElo "2118"]

1. Nf3 {[%clk 01:30:55]} {[%emt 00:00:05]} e6 {[%clk 01:30:07]} {[%emt
00:00:53]} 2. g3 {[%clk 01:31:13]} {[%emt 00:00:12]} d5 {[%clk 01:29:33]}
{[%emt 00:01:04]} 3. Bg2 {[%clk 01:31:22]} {[%emt 00:00:22]} Nf6 {[%clk
01:29:42]} {[%emt 00:00:21]} 4. c4 {[%clk 01:31:30]} {[%emt 00:00:22]} c6
{[%clk 01:29:15]} {[%emt 00:00:57]} 5. b3 {[%clk 01:31:30]} {[%emt 00:00:30]}
Bd6 {[%clk 01:24:14]} {[%emt 00:05:31]} 6. Bb2 {[%clk 01:29:19]} {[%emt
00:02:41]} O-O {[%clk 01:24:27]} {[%emt 00:00:17]} 7. O-O {[%clk 01:29:15]}
{[%emt 00:00:34]} Nbd7 {[%clk 01:22:41]} {[%emt 00:02:17]} 8. cxd5 {[%clk
01:27:10]} {[%emt 00:02:34]} exd5 {[%clk 01:22:49]} {[%emt 00:00:23]} 9. d3
{[%clk 01:21:03]} {[%emt 00:06:36]} Re8 {[%clk 01:21:34]} {[%emt 00:01:44]} 10.
Nbd2 {[%clk 01:20:50]} {[%emt 00:00:43]} Qe7 {[%clk 01:15:22]} {[%emt
00:06:43]} 11. Re1 {[%clk 01:21:00]} {[%emt 00:00:19]} a5 {[%clk 01:08:21]}
{[%emt 00:07:32]} 12. e4 {[%clk 01:09:27]} {[%emt 00:12:02]} dxe4 {[%clk
01:03:49]} {[%emt 00:05:02]} 13. Nxe4 {[%clk 01:08:19]} {[%emt 00:01:38]} Nxe4
{[%clk 01:02:38]} {[%emt 00:01:42]} 14. Rxe4 {[%clk 00:54:37]} {[%emt
00:14:11]} Qd8 {[%clk 00:57:18]} {[%emt 00:05:50]} 15. Qe2 {[%clk 00:54:54]}
{[%emt 00:00:14]} Rxe4 {[%clk 00:56:43]} {[%emt 00:01:04]} 16. dxe4 {[%clk
00:54:47]} {[%emt 00:00:36]} Nf8 {[%clk 00:54:57]} {[%emt 00:02:17]} 17. Rd1
{[%clk 00:51:31]} {[%emt 00:03:45]} Qe7 {[%clk 00:54:38]} {[%emt 00:00:49]} 18.
Qd3 {[%clk 00:51:07]} {[%emt 00:00:55]} Bc7 {[%clk 00:54:19]} {[%emt 00:00:48]}
19. Qc3 {[%clk 00:48:55]} {[%emt 00:02:42]} f6 {[%clk 00:52:35]} {[%emt
00:02:15]} 20. e5 {[%clk 00:41:20]} {[%emt 00:08:05]} fxe5 {[%clk 00:43:15]}
{[%emt 00:09:49]} 21. Nxe5 {[%clk 00:35:27]} {[%emt 00:06:24]} a4 {[%clk
00:39:47]} {[%emt 00:03:59]} 22. Nxc6 {[%clk 00:26:31]} {[%emt 00:09:25]} bxc6
{[%clk 00:39:07]} {[%emt 00:01:10]} 23. Bxc6 {[%clk 00:26:50]} {[%emt
00:00:10]} Ba5 {[%clk 00:24:29]} {[%emt 00:15:08]} 24. Qd4 {[%clk 00:23:15]}
{[%emt 00:04:06]} Ne6 {[%clk 00:22:44]} {[%emt 00:02:16]} 25. Qd5 {[%clk
00:20:04]} {[%emt 00:03:40]} Rb8 {[%clk 00:19:17]} {[%emt 00:03:57]} 26. Qxa5
{[%clk 00:17:41]} {[%emt 00:02:52]} 1-0

[Event "Vetern-SM 50+ 2025"]
[Site "Uppsala, Sweden"]
[Date "2025.07.01"]
[Round "4.1"]
[White "Vernersson, Per"]
[Black "Gamback, Bjorn"]
[Result "1/2-1/2"]
[TimeControl "90 min for 40 move + 30 min with an increment of 30 sec starting move 1"]
[BlackTitle "CM"]
[WhiteFideId "1700863"]
[BlackFideId "1703161"]
[WhiteElo "2258"]
[BlackElo "1996"]

1. d4 {[%clk 01:30:53]} {[%emt 00:00:06]} Nf6 {[%clk 01:30:48]} {[%emt
00:00:13]} 2. c4 {[%clk 01:31:11]} {[%emt 00:00:12]} e6 {[%clk 01:31:05]}
{[%emt 00:00:13]} 3. Nf3 {[%clk 01:31:26]} {[%emt 00:00:15]} c5 {[%clk
01:31:25]} {[%emt 00:00:10]} 4. e3 {[%clk 01:31:44]} {[%emt 00:00:11]} d5
{[%clk 01:31:41]} {[%emt 00:00:15]} 5. Nc3 {[%clk 01:31:57]} {[%emt 00:00:16]}
a6 {[%clk 01:31:47]} {[%emt 00:00:25]} 6. a3 {[%clk 01:31:40]} {[%emt
00:00:47]} dxc4 {[%clk 01:31:33]} {[%emt 00:00:43]} 7. dxc5 {[%clk 01:31:37]}
{[%emt 00:00:33]} Qxd1+ {[%clk 01:31:46]} {[%emt 00:00:18]} 8. Kxd1 {[%clk
01:31:55]} {[%emt 00:00:12]} Bxc5 {[%clk 01:31:59]} {[%emt 00:00:17]} 9. Bxc4
{[%clk 01:32:15]} {[%emt 00:00:09]} b5 {[%clk 01:32:08]} {[%emt 00:00:21]} 10.
Bd3 {[%clk 01:32:18]} {[%emt 00:00:27]} Bb7 {[%clk 01:32:12]} {[%emt 00:00:26]}
11. Ke2 {[%clk 01:31:51]} {[%emt 00:00:56]} Ke7 {[%clk 01:30:56]} {[%emt
00:01:47]} 12. b4 {[%clk 01:29:12]} {[%emt 00:03:09]} Bd6 {[%clk 01:30:45]}
{[%emt 00:00:42]} 13. Bb2 {[%clk 01:26:10]} {[%emt 00:03:32]} Nbd7 {[%clk
01:30:46]} {[%emt 00:00:29]} 14. h3 {[%clk 01:26:00]} {[%emt 00:00:39]} Nb6
{[%clk 01:26:11]} {[%emt 00:05:06]} 15. e4 {[%clk 01:18:51]} {[%emt 00:07:39]}
e5 {[%clk 01:24:34]} {[%emt 00:02:07]} 16. Nd2 {[%clk 01:09:55]} {[%emt
00:09:25]} Rac8 {[%clk 01:21:32]} {[%emt 00:03:32]} 17. Rac1 {[%clk 01:02:01]}
{[%emt 00:08:25]} Rc7 {[%clk 01:16:25]} {[%emt 00:05:37]} 18. Na2 {[%clk
00:58:35]} {[%emt 00:03:54]} Rhc8 {[%clk 01:15:08]} {[%emt 00:01:48]} 19. Rxc7+
{[%clk 00:58:44]} {[%emt 00:00:22]} Rxc7 {[%clk 01:15:07]} {[%emt 00:00:30]} 20.
Nc3 {[%clk 00:56:05]} {[%emt 00:03:09]} Bc8 {[%clk 01:12:17]} {[%emt 00:03:20]}
21. Ke3 {[%clk 00:49:13]} {[%emt 00:07:22]} Be6 {[%clk 01:10:12]} {[%emt
00:02:34]} 22. Rc1 {[%clk 00:47:47]} {[%emt 00:01:57]} Kd7 {[%clk 01:00:54]}
{[%emt 00:09:48]} 23. Ne2 {[%clk 00:43:20]} {[%emt 00:04:56]} Rxc1 {[%clk
00:45:59]} {[%emt 00:15:27]} 24. Nxc1 {[%clk 00:43:32]} {[%emt 00:00:17]} Ne8
{[%clk 00:46:03]} {[%emt 00:00:26]} 25. Be2 {[%clk 00:41:04]} {[%emt 00:02:57]}
Kc6 {[%clk 00:44:04]} {[%emt 00:02:31]} 26. Ncb3 {[%clk 00:36:58]} {[%emt
00:04:36]} f6 {[%clk 00:41:10]} {[%emt 00:03:23]} 27. Na5+ {[%clk 00:36:37]}
{[%emt 00:00:56]} Kc7 {[%clk 00:41:05]} {[%emt 00:00:30]} 28. Bd1 {[%clk
00:35:29]} {[%emt 00:01:38]} g6 {[%clk 00:38:49]} {[%emt 00:02:46]} 29. Bb3
{[%clk 00:35:11]} {[%emt 00:00:49]} Ng7 {[%clk 00:38:05]} {[%emt 00:01:14]} 30.
Bxe6 {[%clk 00:34:15]} {[%emt 00:01:26]} Nxe6 {[%clk 00:38:32]} {[%emt
00:00:02]} 31. g3 {[%clk 00:34:31]} {[%emt 00:00:14]} Ng5 {[%clk 00:34:11]}
{[%emt 00:04:51]} 32. h4 {[%clk 00:31:37]} {[%emt 00:03:24]} Ne6 {[%clk
00:34:21]} {[%emt 00:00:20]} 33. Kd3 {[%clk 00:31:40]} {[%emt 00:00:27]} Nd7
{[%clk 00:32:34]} {[%emt 00:02:17]} 34. Nf1 {[%clk 00:31:24]} {[%emt 00:00:45]}
Kb6 {[%clk 00:27:04]} {[%emt 00:06:01]} 35. Ne3 {[%clk 00:31:18]} {[%emt
00:00:36]} Nec5+ {[%clk 00:21:08]} {[%emt 00:06:26]} 36. Ke2 {[%clk 00:16:20]}
{[%emt 00:15:28]} Nxe4 {[%clk 00:18:36]} {[%emt 00:03:02]} 37. Nd5+ {[%clk
00:16:35]} {[%emt 00:00:15]} Ka7 {[%clk 00:18:58]} {[%emt 00:00:07]} 38. Ke3
{[%clk 00:16:38]} {[%emt 00:00:29]} f5 {[%clk 00:18:25]} {[%emt 00:01:03]} 39.
g4 {[%clk 00:16:46]} {[%emt 00:00:22]} Nef6 {[%clk 00:14:05]} {[%emt 00:04:49]}
40. Nxf6 {[%clk 00:16:52]} {[%emt 00:00:24]} Nxf6 {[%clk 00:14:09]} {[%emt
00:00:26]} 41. gxf5 {[%clk 00:17:02]} {[%emt 00:00:21]} Ng4+ {[%clk 00:13:37]}
{[%emt 00:01:00]} 42. Ke4 {[%clk 00:17:01]} {[%emt 00:00:32]} Nf6+ {[%clk
00:11:37]} {[%emt 00:02:30]} 43. Kd3 {[%clk 00:16:23]} {[%emt 00:01:08]} Kb6
{[%clk 00:11:07]} {[%emt 00:01:01]} 44. fxg6 {[%clk 00:16:00]} {[%emt
00:00:52]} hxg6 {[%clk 00:11:23]} {[%emt 00:00:15]} 45. Bc1 {[%clk 00:14:48]}
{[%emt 00:01:41]} Nd5 {[%clk 00:30:21]} {[%emt 00:11:33]} 46. Nb3 {[%clk
00:44:22]} {[%emt 00:00:56]} Kc6 {[%clk 00:29:46]} {[%emt 00:01:04]} 47. Bg5
{[%clk 00:43:25]} {[%emt 00:01:27]} Nb6 {[%clk 00:28:11]} {[%emt 00:02:05]} 48.
Nd2 {[%clk 00:41:13]} {[%emt 00:02:42]} Kd5 {[%clk 00:26:08]} {[%emt 00:02:33]}
49. f3 {[%clk 00:40:35]} {[%emt 00:01:08]} Ke6 {[%clk 00:23:16]} {[%emt
00:03:22]} 50. Bd8 {[%clk 00:37:45]} {[%emt 00:03:20]} 1/2-1/2

[Event "Vetern-SM 50+ 2025"]
[Site "Uppsala, Sweden"]
[Date "2025.07.01"]
[Round "4.2"]
[White "Helin, Mikael"]
[Black "Olsson, Pether"]
[Result "0-1"]
[TimeControl "90 min for 40 move + 30 min with an increment of 30 sec starting move 1"]
[WhiteTitle "CM"]
[WhiteFideId "1703838"]
[BlackFideId "1726820"]
[WhiteElo "1929"]
[BlackElo "2160"]

1. e4 {[%clk 01:30:56]} {[%emt 00:00:04]} e5 {[%clk 01:30:44]} {[%emt
00:00:16]} 2. Nf3 {[%clk 01:31:19]} {[%emt 00:00:07]} Nc6 {[%clk 01:31:01]}
{[%emt 00:00:13]} 3. d3 {[%clk 01:31:39]} {[%emt 00:00:10]} Nf6 {[%clk
01:26:26]} {[%emt 00:05:04]} 4. Nbd2 {[%clk 01:31:51]} {[%emt 00:00:18]} Bc5
{[%clk 01:23:50]} {[%emt 00:03:06]} 5. h3 {[%clk 01:31:57]} {[%emt 00:00:24]}
d6 {[%clk 01:22:30]} {[%emt 00:01:51]} 6. c3 {[%clk 01:32:14]} {[%emt
00:00:13]} a6 {[%clk 01:21:54]} {[%emt 00:01:06]} 7. Be2 {[%clk 01:31:09]}
{[%emt 00:01:34]} Ba7 {[%clk 01:08:45]} {[%emt 00:13:40]} 8. Qc2 {[%clk
01:30:45]} {[%emt 00:00:54]} Ne7 {[%clk 01:02:29]} {[%emt 00:06:46]} 9. Nf1
{[%clk 01:26:32]} {[%emt 00:04:42]} Ng6 {[%clk 01:01:01]} {[%emt 00:01:59]} 10.
g3 {[%clk 01:26:58]} {[%emt 00:00:03]} h6 {[%clk 00:58:16]} {[%emt 00:03:15]}
11. b3 {[%clk 01:22:13]} {[%emt 00:05:16]} Be6 {[%clk 00:56:23]} {[%emt
00:02:24]} 12. Ne3 {[%clk 01:19:11]} {[%emt 00:03:31]} Qd7 {[%clk 00:55:00]}
{[%emt 00:01:53]} 13. d4 {[%clk 01:08:56]} {[%emt 00:10:44]} Bxh3 {[%clk
00:44:12]} {[%emt 00:11:19]} 14. Ng1 {[%clk 01:01:10]} {[%emt 00:08:16]} exd4
{[%clk 00:41:20]} {[%emt 00:03:22]} 15. Nxh3 {[%clk 00:56:01]} {[%emt
00:05:39]} dxe3 {[%clk 00:41:33]} {[%emt 00:00:16]} 16. fxe3 {[%clk 00:55:46]}
{[%emt 00:00:45]} Ne5 {[%clk 00:39:29]} {[%emt 00:02:33]} 17. Nf4 {[%clk
00:53:34]} {[%emt 00:02:43]} O-O-O {[%clk 00:34:43]} {[%emt 00:05:17]} 18. c4
{[%clk 00:51:09]} {[%emt 00:02:53]} Nfg4 {[%clk 00:30:25]} {[%emt 00:04:49]} 19.
Qc3 {[%clk 00:46:45]} {[%emt 00:04:54]} Rde8 {[%clk 00:28:08]} {[%emt
00:02:47]} 20. Rh4 {[%clk 00:43:21]} {[%emt 00:03:54]} g5 {[%clk 00:24:39]}
{[%emt 00:03:59]} 21. Rxg4 {[%clk 00:43:36]} {[%emt 00:00:16]} Nxg4 {[%clk
00:25:06]} {[%emt 00:00:03]} 22. Nd5 {[%clk 00:43:42]} {[%emt 00:00:24]} c6
{[%clk 00:23:55]} {[%emt 00:01:41]} 23. Nb4 {[%clk 00:38:15]} {[%emt 00:05:55]}
Rhg8 {[%clk 00:23:21]} {[%emt 00:01:01]} 24. Qd3 {[%clk 00:38:22]} {[%emt
00:00:26]} Ne5 {[%clk 00:22:00]} {[%emt 00:01:52]} 25. Qd2 {[%clk 00:36:08]}
{[%emt 00:02:42]} Qh3 {[%clk 00:22:16]} {[%emt 00:00:15]} 26. Kd1 {[%clk
00:33:12]} {[%emt 00:03:27]} Qxg3 {[%clk 00:19:33]} {[%emt 00:03:14]} 27. Kc2
{[%clk 00:33:19]} {[%emt 00:00:23]} Qg2 {[%clk 00:18:55]} {[%emt 00:01:05]} 28.
Kb2 {[%clk 00:31:09]} {[%emt 00:02:42]} Qxe4 {[%clk 00:17:56]} {[%emt
00:01:29]} 29. Nc2 {[%clk 00:30:24]} {[%emt 00:01:16]} Re6 {[%clk 00:17:03]}
{[%emt 00:01:21]} 30. Ka3 {[%clk 00:27:35]} {[%emt 00:03:20]} d5 {[%clk
00:14:30]} {[%emt 00:03:04]} 31. Bb2 {[%clk 00:26:45]} {[%emt 00:01:19]} dxc4
{[%clk 00:13:43]} {[%emt 00:01:18]} 32. Nd4 {[%clk 00:25:59]} {[%emt 00:01:16]}
Rd6 {[%clk 00:13:30]} {[%emt 00:00:43]} 33. Bf1 {[%clk 00:22:02]} {[%emt
00:04:26]} c5 {[%clk 00:11:33]} {[%emt 00:02:29]} 34. Bg2 {[%clk 00:22:22]}
{[%emt 00:00:09]} Qd3 {[%clk 00:11:32]} {[%emt 00:00:30]} 35. Qxd3 {[%clk
00:18:12]} {[%emt 00:04:41]} Nxd3 {[%clk 00:11:41]} {[%emt 00:00:20]} 36. Nf5
{[%clk 00:18:18]} {[%emt 00:00:24]} Re6 {[%clk 00:11:36]} {[%emt 00:00:35]} 37.
Bc3 {[%clk 00:18:01]} {[%emt 00:00:48]} Nb4 {[%clk 00:10:01]} {[%emt 00:02:04]}
38. Rh1 {[%clk 00:16:53]} {[%emt 00:01:39]} Nc2+ {[%clk 00:10:08]} {[%emt
00:00:23]} 39. Kb2 {[%clk 00:13:50]} {[%emt 00:03:32]} Nxe3 {[%clk 00:10:18]}
{[%emt 00:00:20]} 40. Nxe3 {[%clk 00:10:43]} {[%emt 00:03:37]} Rxe3 {[%clk
00:10:34]} {[%emt 00:00:13]} 41. Bd5 {[%clk 00:11:12]} {[%emt 00:00:03]} cxb3
{[%clk 00:03:44]} {[%emt 00:07:20]} 42. axb3 {[%clk 00:04:31]} {[%emt
00:07:10]} Bb8 {[%clk 00:01:36]} {[%emt 00:02:38]} 43. Rxh6 {[%clk 00:02:20]}
{[%emt 00:02:42]} Be5 {[%clk 00:01:15]} {[%emt 00:00:51]} 44. Bxe5 {[%clk
00:01:49]} {[%emt 00:01:01]} Rxe5 {[%clk 00:01:43]} {[%emt 00:00:01]} 45. Bxf7
{[%clk 00:29:45]} {[%emt 00:02:34]} Rg7 {[%clk 00:32:00]} {[%emt 00:00:12]} 46.
Bc4 {[%clk 00:28:31]} {[%emt 00:01:45]} g4 {[%clk 00:32:09]} {[%emt 00:00:19]}
0-1

[Event "Vetern-SM 50+ 2025"]
[Site "Uppsala, Sweden"]
[Date "2025.07.01"]
[Round "4.3"]
[White "Johansen, Peter"]
[Black "Eriksson, Kristian"]
[Result "1/2-1/2"]
[TimeControl "90 min for 40 move + 30 min with an increment of 30 sec starting move 1"]
[WhiteFideId "1723944"]
[BlackFideId "1705172"]
[WhiteElo "2104"]
[BlackElo "1998"]

1. e4 {[%clk 01:30:54]} {[%emt 00:00:05]} e5 {[%clk 01:30:46]} {[%emt
00:00:14]} 2. Nf3 {[%clk 01:29:58]} {[%emt 00:01:27]} Nc6 {[%clk 01:31:07]}
{[%emt 00:00:07]} 3. Nc3 {[%clk 01:29:20]} {[%emt 00:01:10]} Nf6 {[%clk
01:30:44]} {[%emt 00:00:52]} 4. Bb5 {[%clk 01:22:51]} {[%emt 00:07:00]} d6
{[%clk 01:30:41]} {[%emt 00:00:32]} 5. d4 {[%clk 01:22:35]} {[%emt 00:00:47]}
Bd7 {[%clk 01:29:47]} {[%emt 00:01:24]} 6. d5 {[%clk 01:18:34]} {[%emt
00:04:31]} Ne7 {[%clk 01:24:29]} {[%emt 00:05:46]} 7. Qd3 {[%clk 01:15:14]}
{[%emt 00:03:52]} a6 {[%clk 01:17:51]} {[%emt 00:07:09]} 8. Bc4 {[%clk
01:12:41]} {[%emt 00:03:03]} Ng6 {[%clk 01:14:41]} {[%emt 00:03:39]} 9. h3
{[%clk 01:06:33]} {[%emt 00:06:37]} Be7 {[%clk 01:08:40]} {[%emt 00:06:32]} 10.
Be3 {[%clk 01:03:59]} {[%emt 00:03:03]} O-O {[%clk 01:04:34]} {[%emt 00:04:36]}
11. g4 {[%clk 00:59:42]} {[%emt 00:04:48]} c6 {[%clk 00:58:30]} {[%emt
00:06:34]} 12. dxc6 {[%clk 00:58:36]} {[%emt 00:01:36]} bxc6 {[%clk 00:57:46]}
{[%emt 00:01:14]} 13. O-O-O {[%clk 00:50:39]} {[%emt 00:08:26]} Be6 {[%clk
00:50:45]} {[%emt 00:07:31]} 14. g5 {[%clk 00:39:22]} {[%emt 00:11:48]} Nh5
{[%clk 00:47:38]} {[%emt 00:03:36]} 15. Ne2 {[%clk 00:38:40]} {[%emt 00:01:12]}
Qa5 {[%clk 00:41:17]} {[%emt 00:06:52]} 16. Ne1 {[%clk 00:32:12]} {[%emt
00:06:58]} Bxc4 {[%clk 00:31:58]} {[%emt 00:09:48]} 17. Qxc4 {[%clk 00:32:35]}
{[%emt 00:00:08]} Qb5 {[%clk 00:31:32]} {[%emt 00:00:56]} 18. Qxb5 {[%clk
00:31:01]} {[%emt 00:02:04]} axb5 {[%clk 00:31:54]} {[%emt 00:00:08]} 19. a3
{[%clk 00:31:12]} {[%emt 00:00:19]} f5 {[%clk 00:27:37]} {[%emt 00:04:45]} 20.
gxf6 {[%clk 00:30:46]} {[%emt 00:00:57]} Nxf6 {[%clk 00:26:53]} {[%emt
00:01:15]} 21. Nc3 {[%clk 00:30:10]} {[%emt 00:01:07]} Rfb8 {[%clk 00:24:02]}
{[%emt 00:03:20]} 22. Nd3 {[%clk 00:22:34]} {[%emt 00:08:05]} c5 {[%clk
00:22:29]} {[%emt 00:02:03]} 23. f3 {[%clk 00:22:09]} {[%emt 00:00:56]} b4
{[%clk 00:20:19]} {[%emt 00:02:40]} 24. Nb1 {[%clk 00:20:43]} {[%emt 00:01:55]}
Nd7 {[%clk 00:17:39]} {[%emt 00:03:10]} 25. c3 {[%clk 00:18:32]} {[%emt
00:02:42]} bxa3 {[%clk 00:15:58]} {[%emt 00:02:10]} 1/2-1/2

[Event "Vetern-SM 50+ 2025"]
[Site "Uppsala, Sweden"]
[Date "2025.07.01"]
[Round "4.4"]
[White "Svensson, Hakan"]
[Black "Ljung, Rickard"]
[Result "1-0"]
[TimeControl "90 min for 40 move + 30 min with an increment of 30 sec starting move 1"]
[WhiteFideId "1714201"]
[BlackFideId "1740156"]
[WhiteElo "2004"]
[BlackElo "1972"]

1. e4 d6 2. d4 Nf6 3. Bd3 g6 4. Nf3 Bg7 5. O-O O-O 6. c3 c6 7. Bg5 Qc7 8. Re1
e5 9. Nbd2 Be6 10. dxe5 dxe5 11. Qc2 Nbd7 12. b4 h6 13. Bh4 g5 14. Bg3 Nh5 15.
Bc4 Bxc4 16. Nxc4 Rfe8 17. Rad1 Nxg3 18. hxg3 Bf8 19. Ne3 Nf6 20. Nf5 Rad8 21.
a3 a5 22. Nd2 axb4 23. axb4 Rd7 24. Nb3 Red8 25. f3 Ne8 26. g4 Kh7 27. Kh2 Ng7
28. Ng3 Ne6 29. Na5 Nf4 30. Nc4 Kg8 31. Rxd7 Rxd7 32. Rd1 b5 33. Ne3 Qd8 34.
Rxd7 Qxd7 35. Nh5 Qd8 36. Nxf4 gxf4 37. Nf5 c5 38. bxc5 Bxc5 39. Nxh6+ Kg7 40.
Nf5+ Kg6 41. g3 Qh8+ 42. Kg2 fxg3 43. Nxg3 Qh4 44. Qd1 Qg5 45. Qd7 Qf6 46. Nh5
Qe6 47. Qxe6+ fxe6 48. Kf1 Bf8 49. Ke2 Ba3 50. Kd3 Bc5 51. Ng3 Kg5 52. Ne2 Ba3
53. c4 bxc4+ 54. Kxc4 Kh4 55. Kb5 Kg5 56. Kc6 Kf6 57. Kd7 Kf7 58. Nc3 Bb2 59.
Nb5 Bc1 60. Nc7 Bd2 61. Nxe6 {[%clk 01:21:35]} Bc1 {[%clk 01:14:37]} 62. Kd6
{[%clk 01:21:35]} Bb2 {[%clk 01:14:37]} 63. Nc5 {[%clk 01:21:35]} 1-0

[Event "Vetern-SM 50+ 2025"]
[Site "Uppsala, Sweden"]
[Date "2025.07.01"]
[Round "4.5"]
[White "Gromark, Jonas"]
[Black "Brandberg, Joakim"]
[Result "1-0"]
[TimeControl "90 min for 40 move + 30 min with an increment of 30 sec starting move 1"]
[WhiteFideId "137122733"]
[BlackFideId "1712276"]
[WhiteElo "1822"]
[BlackElo "2111"]

1. c4 {[%clk 01:29:48]} {[%emt 00:01:11]} e5 {[%clk 01:30:48]} {[%emt
00:00:13]} 2. Nc3 {[%clk 01:30:04]} {[%emt 00:00:14]} Nf6 {[%clk 01:30:57]}
{[%emt 00:00:20]} 3. Nf3 {[%clk 01:28:32]} {[%emt 00:02:02]} Nc6 {[%clk
01:31:12]} {[%emt 00:00:16]} 4. e4 {[%clk 01:28:33]} {[%emt 00:00:29]} Bb4
{[%clk 01:31:34]} {[%emt 00:00:08]} 5. d3 {[%clk 01:28:06]} {[%emt 00:00:56]}
d6 {[%clk 01:31:30]} {[%emt 00:00:34]} 6. Be2 {[%clk 01:27:54]} {[%emt
00:00:43]} Bg4 {[%clk 01:30:06]} {[%emt 00:01:54]} 7. O-O {[%clk 01:27:41]}
{[%emt 00:00:42]} Bxc3 {[%clk 01:29:04]} {[%emt 00:01:32]} 8. bxc3 {[%clk
01:28:03]} {[%emt 00:00:08]} Qd7 {[%clk 01:27:34]} {[%emt 00:02:00]} 9. Be3
{[%clk 01:27:10]} {[%emt 00:01:23]} O-O {[%clk 01:25:50]} {[%emt 00:02:14]} 10.
Nd2 {[%clk 01:22:50]} {[%emt 00:04:50]} Bxe2 {[%clk 01:24:46]} {[%emt
00:01:33]} 11. Qxe2 {[%clk 01:23:13]} {[%emt 00:00:08]} Ne8 {[%clk 01:23:48]}
{[%emt 00:01:28]} 12. f4 {[%clk 01:17:01]} {[%emt 00:06:41]} f5 {[%clk
01:21:10]} {[%emt 00:03:08]} 13. Rae1 {[%clk 01:08:50]} {[%emt 00:08:41]} fxe4
{[%clk 01:14:47]} {[%emt 00:06:54]} 14. Nxe4 {[%clk 01:07:53]} {[%emt
00:01:27]} Nf6 {[%clk 01:14:18]} {[%emt 00:00:58]} 15. f5 {[%clk 01:00:32]}
{[%emt 00:07:52]} Nxe4 {[%clk 01:04:45]} {[%emt 00:10:03]} 16. dxe4 {[%clk
01:00:51]} {[%emt 00:00:12]} b6 {[%clk 01:04:40]} {[%emt 00:00:35]} 17. Rf3
{[%clk 00:49:34]} {[%emt 00:11:46]} Na5 {[%clk 01:01:42]} {[%emt 00:03:28]} 18.
Rg3 {[%clk 00:43:37]} {[%emt 00:06:27]} Kh8 {[%clk 00:53:53]} {[%emt 00:08:18]}
19. Bg5 {[%clk 00:41:38]} {[%emt 00:02:30]} Rf7 {[%clk 00:48:12]} {[%emt
00:06:11]} 20. Rh3 {[%clk 00:40:27]} {[%emt 00:01:41]} Raf8 {[%clk 00:39:31]}
{[%emt 00:09:11]} 21. Qh5 {[%clk 00:39:16]} {[%emt 00:01:40]} h6 {[%clk
00:39:51]} {[%emt 00:00:11]} 22. Bxh6 {[%clk 00:33:28]} {[%emt 00:06:19]} Kg8
{[%clk 00:36:51]} {[%emt 00:03:29]} 23. Bg5 {[%clk 00:29:51]} {[%emt 00:04:07]}
Rf6 {[%clk 00:36:49]} {[%emt 00:00:32]} 24. Bxf6 {[%clk 00:29:45]} {[%emt
00:00:36]} Rxf6 {[%clk 00:36:58]} {[%emt 00:00:21]} 25. Qh8+ {[%clk 00:29:27]}
{[%emt 00:00:47]} Kf7 {[%clk 00:37:13]} {[%emt 00:00:16]} 26. Rh7 {[%emt
00:01:45]} 1-0

[Event "Vetern-SM 50+ 2025"]
[Site "Uppsala, Sweden"]
[Date "2025.07.01"]
[Round "4.6"]
[White "Ivarsson, Anders"]
[Black "Persson, Lars"]
[Result "1-0"]
[TimeControl "90 min for 40 move + 30 min with an increment of 30 sec starting move 1"]
[WhiteFideId "1768158"]
[BlackFideId "1703579"]
[WhiteElo "1987"]
[BlackElo "2041"]

1. Nf3 {[%clk 01:30:04]} {[%emt 00:00:55]} f5 {[%clk 01:26:39]} {[%emt
00:04:21]} 2. d3 {[%clk 01:30:26]} {[%emt 00:00:08]} Nf6 {[%clk 01:26:57]}
{[%emt 00:00:12]} 3. e4 {[%clk 01:30:50]} {[%emt 00:00:05]} d6 {[%clk
01:26:42]} {[%emt 00:00:46]} 4. exf5 {[%clk 01:31:08]} {[%emt 00:00:12]} Bxf5
{[%clk 01:27:02]} {[%emt 00:00:10]} 5. d4 {[%clk 01:31:32]} {[%emt 00:00:06]}
Nbd7 {[%clk 01:24:29]} {[%emt 00:03:03]} 6. Bd3 {[%clk 01:28:36]} {[%emt
00:03:26]} Bxd3 {[%clk 01:23:18]} {[%emt 00:01:41]} 7. Qxd3 {[%clk 01:29:01]}
{[%emt 00:00:04]} e5 {[%clk 01:23:17]} {[%emt 00:00:32]} 8. Ng5 {[%clk
01:25:59]} {[%emt 00:03:32]} Qe7 {[%clk 01:18:55]} {[%emt 00:04:53]} 9. O-O
{[%clk 01:25:37]} {[%emt 00:00:51]} e4 {[%clk 01:18:43]} {[%emt 00:00:42]} 10.
Qb3 {[%clk 01:24:48]} {[%emt 00:01:18]} b6 {[%clk 01:13:47]} {[%emt 00:05:26]}
11. Nc3 {[%clk 01:22:32]} {[%emt 00:02:47]} h6 {[%clk 01:10:30]} {[%emt
00:03:48]} 12. Ne6 {[%clk 01:22:24]} {[%emt 00:00:37]} Rc8 {[%emt 00:00:13]} 13.
Nb5 {[%clk 01:22:24]} {[%emt 00:00:28]} c6 {[%clk 01:03:43]} {[%emt 00:07:36]}
14. Nxa7 {[%clk 01:20:46]} {[%emt 00:02:08]} d5 {[%clk 00:55:28]} {[%emt
00:08:45]} 15. Nxf8 {[%clk 01:20:20]} {[%emt 00:00:56]} Ra8 {[%clk 00:48:13]}
{[%emt 00:07:45]} 16. Ng6 {[%clk 01:19:50]} {[%emt 00:01:00]} Qd6 {[%clk
00:47:30]} {[%emt 00:01:13]} 17. Bf4 {[%clk 01:11:20]} {[%emt 00:09:00]} Qe6
{[%clk 00:36:03]} {[%emt 00:11:57]} 18. Nxh8 {[%clk 01:11:38]} {[%emt
00:00:12]} Nh5 {[%clk 00:36:16]} {[%emt 00:00:17]} 19. Be5 {[%clk 01:11:07]}
{[%emt 00:01:02]} Rxa7 {[%clk 00:36:17]} {[%emt 00:00:29]} 20. f3 {[%clk
01:09:50]} {[%emt 00:01:46]} e3 {[%clk 00:36:25]} {[%emt 00:00:23]} 21. Qxe3
{[%emt 00:02:16]} 1-0